fUSD/lending_fUSD_20260501
["ID","MTS","AMOUNT","RATE_DAILY","PERIOD"]
[421432602,1777641916000,150.0,8.451e-05,2]
[421432603,1777641916000,150.0,8.538e-05,2]
[421432600,1777641916000,150.0,8.277e-05,2]
[421432604,1777641918000,150.0,7.841e-05,2]
[421432609,1777641925000,150.0,7.841e-05,2]
[421432608,1777641925000,150.0,8.495e-05,2]
[421432607,1777641925000,150.0,8.277e-05,2]
[421432605,1777641925000,150.0,7.841e-05,2]
[421432606,1777641925000,150.0,8.059e-05,2]
[421432610,1777641926000,150.0,7.92e-05,2]
[421432612,1777641926000,150.0,8.079e-05,2]
[421432611,1777641926000,150.0,8e-05,2]
[421432613,1777641926000,150.0,8.158e-05,2]
[421432616,1777641926000,150.0,8.396e-05,2]
[421432615,1777641926000,150.0,8.316e-05,2]
[421432617,1777641926000,150.0,8.475e-05,2]
[421432618,1777641926000,150.0,8.554e-05,2]
[421432614,1777641926000,150.0,8.237e-05,2]
[421432619,1777641930000,836.44,4.654e-05,2]
[421432621,1777641931000,272.87,4.898e-05,2]
[421432620,1777641931000,563.57,4.898e-05,2]
[421432623,1777641931000,836.44,5.388e-05,2]
[421432624,1777641931000,836.44,5.633e-05,2]
[421432622,1777641931000,836.44,5.143e-05,2]
[421432629,1777641932000,836.44,6.613e-05,2]
[421432627,1777641932000,817.81,6.368e-05,2]
[421432628,1777641932000,18.63,6.368e-05,2]
[421432626,1777641932000,836.44,6.123e-05,2]
[421432625,1777641932000,836.44,5.878e-05,2]
[421432632,1777641933000,836.44,7.348e-05,2]
[421432631,1777641933000,836.44,7.103e-05,2]
[421432630,1777641933000,836.44,6.858e-05,2]
[421432634,1777641934000,836.44,7.838e-05,2]
[421432633,1777641934000,836.44,7.593e-05,2]
[421432635,1777641934000,836.44,8.083e-05,2]
[421432636,1777641934000,836.44,8.328e-05,2]
[421432637,1777641935000,836.44,8.572e-05,2]
[421432641,1777642048000,-150.0,8.625e-05,2]
[421432642,1777642048000,-150.0,8.633e-05,2]
[421432644,1777642048000,-290.56746431,8.712e-05,2]
[421432646,1777642048000,-150.0,8.712e-05,2]
[421432643,1777642048000,-150.0,8.712e-05,2]
[421432647,1777642048000,-150.0,8.712e-05,2]
[421432649,1777642048000,-53.92313532,8.728e-05,2]
[421432648,1777642048000,-150.0,8.712e-05,2]
[421432645,1777642048000,-150.0,8.712e-05,2]
[421432650,1777642056000,2000.0,0.0003013,120]
[421432651,1777642100000,1770.98989804,0.0003013,120]
[421432675,1777642232000,-502.49887435,8.629e-05,2]
[421432673,1777642232000,-1200.0,8.629e-05,2]
[421432672,1777642232000,-300.0,8.629e-05,2]
[421432678,1777642232000,-1728.70844309,8.63e-05,2]
[421432674,1777642232000,-150.0,8.629e-05,2]
[421432676,1777642232000,-1541.76066044,8.63e-05,2]
[421432679,1777642232000,-72140.19268413,8.63e-05,2]
[421432680,1777642232000,-335.31,8.63e-05,2]
[421432682,1777642232000,-1050.0,8.63e-05,2]
[421432677,1777642232000,-2171.79258427,8.63e-05,2]
[421432681,1777642232000,-1623.11679656,8.63e-05,2]
[421432725,1777642238000,-500.0,8.729e-05,2]
[421432727,1777642238000,-500.0,8.729e-05,2]
[421432726,1777642238000,-500.0,8.729e-05,2]
[421432728,1777642238000,-500.0,8.729e-05,2]
[421432724,1777642238000,-500.0,8.729e-05,2]
[421432721,1777642238000,-500.0,8.729e-05,2]
[421432719,1777642238000,-500.0,8.729e-05,2]
[421432718,1777642238000,-500.0,8.729e-05,2]
[421432720,1777642238000,-500.0,8.729e-05,2]
[421432717,1777642238000,-500.0,8.729e-05,2]
[421432723,1777642238000,-492.19847687,8.729e-05,2]
[421432714,1777642238000,-500.0,8.729e-05,2]
[421432713,1777642238000,-500.0,8.729e-05,2]
[421432712,1777642238000,-500.0,8.729e-05,2]
[421432710,1777642238000,-308.22180008,8.729e-05,2]
[421432709,1777642238000,-500.0,8.729e-05,2]
[421432711,1777642238000,-500.0,8.729e-05,2]
[421432707,1777642238000,-340.38339962,8.63e-05,2]
[421432708,1777642238000,-26230.30513189,8.63e-05,2]
[421432733,1777642238000,-500.0,8.729e-05,2]
[421432715,1777642238000,-500.0,8.729e-05,2]
[421432734,1777642238000,-500.0,8.729e-05,2]
[421432722,1777642238000,-500.0,8.729e-05,2]
[421432729,1777642238000,-500.0,8.729e-05,2]
[421432732,1777642238000,-273.57128425,8.729e-05,2]
[421432754,1777642238000,-1101.0,8.73e-05,2]
[421432750,1777642238000,-1503.17647077,8.73e-05,2]
[421432751,1777642238000,-354.67588273,8.73e-05,2]
[421432749,1777642238000,-400.0,8.73e-05,2]
[421432752,1777642238000,-1793.2565623,8.73e-05,2]
[421432753,1777642238000,-325.70506989,8.73e-05,2]
[421432748,1777642238000,-380.52932165,8.73e-05,2]
[421432741,1777642238000,-450.0,8.729e-05,2]
[421432740,1777642238000,-500.0,8.729e-05,2]
[421432738,1777642238000,-500.0,8.729e-05,2]
[421432716,1777642238000,-500.0,8.729e-05,2]
[421432739,1777642238000,-500.0,8.729e-05,2]
[421432731,1777642238000,-440.19949503,8.729e-05,2]
[421432736,1777642238000,-500.0,8.729e-05,2]
[421432743,1777642238000,-500.0,8.729e-05,2]
[421432745,1777642238000,-500.0,8.729e-05,2]
[421432744,1777642238000,-417.88273242,8.729e-05,2]
[421432730,1777642238000,-59.80050497,8.729e-05,2]
[421432747,1777642238000,-829.67010334,8.73e-05,2]
[421432735,1777642238000,-500.0,8.729e-05,2]
[421432737,1777642238000,-500.0,8.729e-05,2]
[421432742,1777642238000,-500.0,8.729e-05,2]
[421432746,1777642238000,-41911.83081797,8.73e-05,2]
[421432765,1777642240000,-2090.40897658,8.73e-05,2]
[421432759,1777642240000,-537.23917974,8.73e-05,2]
[421432758,1777642240000,-949.74672577,8.73e-05,2]
[421432757,1777642240000,-1175.6201818,8.73e-05,2]
[421432770,1777642242000,-0.98731502,8.73e-05,2]
[421432839,1777642244000,-5018.71878087,9e-05,2]
[421432841,1777642244000,-5000.0,9e-05,2]
[421432834,1777642244000,-153.87363942,8.73e-05,2]
[421432837,1777642244000,-836.44,8.817e-05,2]
[421432845,1777642244000,-4329.21590344,9e-05,2]
[421432843,1777642244000,-670.78409656,9e-05,2]
[421432859,1777642244000,-669.4747574,9.283e-05,2]
[421432850,1777642244000,-5000.0,9e-05,2]
[421432857,1777642244000,-158.99,9.223e-05,2]
[421432854,1777642244000,-190.12,9.12e-05,2]
[421432852,1777642244000,-836.44,9.062e-05,2]
[421432848,1777642244000,-5000.0,9e-05,2]
[421432880,1777642246000,-299.11968399,8.63e-05,2]
[421432879,1777642246000,-11585.0,8.63e-05,2]
[421432878,1777642246000,-563.4696375,8.63e-05,2]
[421432882,1777642246000,-311.34395417,8.63e-05,2]
[421432883,1777642246000,-2792.4705,8.63e-05,2]
[421432884,1777642246000,-24718.4589048,8.63e-05,2]
[421432881,1777642246000,-10256.0,8.63e-05,2]
[421432937,1777642318000,442.98,0.0003013,120]
[421432942,1777642609000,1060.86477171,8.629e-05,3]
[421432943,1777642632000,1060.86477171,8.629e-05,3]
[421432946,1777642687000,150.0,0.0001053,30]
[421432945,1777642687000,150.0,9.924e-05,30]
[421432949,1777642880000,5000.0,0.000301,120]
[421432951,1777642888000,151.669,8.457e-05,2]
[421432950,1777642888000,1880.052,8.457e-05,2]
[421432957,1777642918000,1040.5925,8.53e-05,2]
[421432969,1777643225000,8959.4175,8.53e-05,2]
[421432970,1777643225000,10000.01,8.53e-05,2]
[421432971,1777643225000,10000.01,8.53e-05,2]
[421432972,1777643225000,10000.01,8.53e-05,2]
[421432978,1777643225000,10000.01,8.53e-05,2]
[421432973,1777643225000,10000.01,8.53e-05,2]
[421432975,1777643225000,10000.01,8.53e-05,2]
[421432976,1777643225000,10000.01,8.53e-05,2]
[421432977,1777643225000,10000.01,8.53e-05,2]
[421432974,1777643225000,10000.01,8.53e-05,2]
[421432979,1777643296000,-480.23241054,8.53e-05,2]
[421433147,1777643488000,-981.51465178,8.53e-05,2]
[421433149,1777643491000,-237.67079411,8.53e-05,2]
[421433150,1777643494000,-2347.4855578,8.53e-05,2]
[421433151,1777643495000,-4649.23918443,8.53e-05,2]
[421433153,1777643497000,-724.0,8.529e-05,2]
[421433152,1777643497000,-268.0,8.529e-05,2]
[421433155,1777643497000,-133857.72112389,8.63e-05,2]
[421433154,1777643497000,-1392344.34990134,8.53e-05,2]
[421433157,1777643497000,-7645.62846184,8.63e-05,2]
[421433158,1777643497000,-156865.86934714,8.63e-05,2]
[421433160,1777643497000,-534.06656813,8.63e-05,2]
[421433159,1777643497000,-2313.4,8.63e-05,2]
[421433161,1777643497000,-13505.96808129,8.63e-05,2]
[421433156,1777643497000,-94376.42284157,8.63e-05,2]
[421433164,1777643498000,-36590.52591381,8.63e-05,2]
[421433163,1777643498000,-82228.20516971,8.63e-05,2]
[421433162,1777643498000,-1425.82817633,8.63e-05,2]
[421433165,1777643498000,-48993.48432967,8.63e-05,2]
[421433167,1777643498000,-380.52932165,8.63e-05,2]
[421433166,1777643498000,-829.67010334,8.63e-05,2]
[421433169,1777643498000,-1620.0,8.63e-05,2]
[421433172,1777643498000,-967.90884236,8.63e-05,2]
[421433170,1777643498000,-80259.64856989,8.63e-05,2]
[421433171,1777643498000,-36659.33004994,8.63e-05,2]
[421433175,1777643498000,-994.30618172,8.63e-05,2]
[421433174,1777643498000,-6998.93399405,8.63e-05,2]
[421433173,1777643498000,-150.0,8.529e-05,2]
[421433176,1777643498000,-2377.62226341,8.63e-05,2]
[421433168,1777643498000,-745.46632711,8.63e-05,2]
[421433190,1777643499000,-150.0,9.178e-05,2]
[421433188,1777643499000,-250.0,9.146e-05,2]
[421433187,1777643499000,-483.88,9.124e-05,2]
[421433192,1777643499000,-150.0,9.178e-05,2]
[421433183,1777643499000,-6932.53,9.005e-05,2]
[421433191,1777643499000,-150.0,9.178e-05,2]
[421433195,1777643499000,-166.66,9.24e-05,2]
[421433198,1777643499000,-836.44,9.307e-05,2]
[421433193,1777643499000,-266.39873443,9.178e-05,2]
[421433194,1777643499000,-1852.42,9.204e-05,2]
[421433185,1777643499000,-45893.15676772,9.04e-05,2]
[421433177,1777643499000,-2022.61147718,8.63e-05,2]
[421433196,1777643499000,-299.99,9.283e-05,2]
[421433197,1777643499000,-9999.99,9.283e-05,2]
[421433186,1777643499000,-500.0,9.04e-05,2]
[421433182,1777643499000,-3125.01018221,9e-05,2]
[421433181,1777643499000,-166.88,8.913e-05,2]
[421433179,1777643499000,-155.3,8.893e-05,2]
[421433180,1777643499000,-4692.38,8.893e-05,2]
[421433199,1777643499000,-150.99,9.307e-05,2]
[421433178,1777643499000,-353753.76005597,8.63e-05,2]
[421433189,1777643499000,-500.0,9.151e-05,2]
[421433200,1777643499000,-3557.88,9.307e-05,2]
[421433184,1777643499000,-2058.48,9.014e-05,2]
[421433207,1777643499000,-150.0,9.616e-05,2]
[421433204,1777643499000,-150.0,9.616e-05,2]
[421433222,1777643499000,300.0,8.429e-05,2]
[421433223,1777643499000,1157.22138105,8.529e-05,3]
[421433221,1777643499000,6079.2951,8.43e-05,2]
[421433220,1777643499000,10000.01,8.43e-05,2]
[421433219,1777643499000,10000.01,8.43e-05,2]
[421433218,1777643499000,10000.01,8.43e-05,2]
[421433224,1777643499000,150.0,8.529e-05,2]
[421433216,1777643499000,-541.39864331,9.7e-05,2]
[421433212,1777643499000,-7030.08661234,9.7e-05,2]
[421433215,1777643499000,-8839.72865526,9.7e-05,2]
[421433217,1777643499000,-810.70186814,9.7e-05,2]
[421433214,1777643499000,-1579.0,9.7e-05,2]
[421433211,1777643499000,-935.63,9.67e-05,2]
[421433210,1777643499000,-1596.59,9.67e-05,2]
[421433205,1777643499000,-150.0,9.616e-05,2]
[421433209,1777643499000,-150.0,9.616e-05,2]
[421433202,1777643499000,-508.0,9.479e-05,2]
[421433203,1777643499000,-4924.3359,9.6e-05,2]
[421433201,1777643499000,-350.0,9.314e-05,2]
[421433206,1777643499000,-150.0,9.616e-05,2]
[421433208,1777643499000,-150.0,9.616e-05,2]
[421433213,1777643499000,-4369.58909676,9.7e-05,2]
[421433225,1777643500000,3470.7149,8.43e-05,2]
[421433226,1777643500000,2805.3481,8.43e-05,2]
[421433227,1777643504000,500.0,8.529e-05,2]
[421433229,1777643504000,173.13499838,8.529e-05,2]
[421433228,1777643504000,273.57128425,8.529e-05,2]
[421433230,1777643504000,500.0,8.529e-05,2]
[421433231,1777643504000,500.0,8.529e-05,2]
[421433232,1777643504000,500.0,8.529e-05,2]
[421433233,1777643504000,500.0,8.529e-05,2]
[421433235,1777643504000,500.0,8.529e-05,2]
[421433234,1777643504000,500.0,8.529e-05,2]
[421433237,1777643504000,500.0,8.529e-05,2]
[421433243,1777643504000,166.88363082,8.529e-05,2]
[421433245,1777643504000,500.0,8.529e-05,2]
[421433244,1777643504000,333.11636918,8.529e-05,2]
[421433242,1777643504000,234.86828382,8.529e-05,2]
[421433236,1777643504000,500.0,8.529e-05,2]
[421433241,1777643504000,500.0,8.529e-05,2]
[421433238,1777643504000,500.0,8.529e-05,2]
[421433239,1777643504000,500.0,8.529e-05,2]
[421433240,1777643504000,346.20370273,8.529e-05,2]
[421433257,1777643505000,500.0,8.529e-05,2]
[421433248,1777643505000,500.0,8.529e-05,2]
[421433246,1777643505000,500.0,8.529e-05,2]
[421433250,1777643505000,500.0,8.529e-05,2]
[421433251,1777643505000,500.0,8.529e-05,2]
[421433249,1777643505000,500.0,8.529e-05,2]
[421433252,1777643505000,500.0,8.529e-05,2]
[421433254,1777643505000,500.0,8.529e-05,2]
[421433253,1777643505000,500.0,8.529e-05,2]
[421433247,1777643505000,500.0,8.529e-05,2]
[421433256,1777643505000,500.0,8.529e-05,2]
[421433259,1777643505000,500.0,8.529e-05,2]
[421433258,1777643505000,500.0,8.529e-05,2]
[421433260,1777643505000,500.0,8.529e-05,2]
[421433262,1777643505000,500.0,8.529e-05,2]
[421433263,1777643505000,500.0,8.529e-05,2]
[421433261,1777643505000,500.0,8.529e-05,2]
[421433266,1777643505000,500.0,8.529e-05,2]
[421433264,1777643505000,166.89363082,8.529e-05,2]
[421433265,1777643505000,39.20856074,8.529e-05,2]
[421433255,1777643505000,500.0,8.529e-05,2]
[421433267,1777643579000,-240.14423337,8.43e-05,2]
[421433268,1777643580000,-1305.00054242,8.43e-05,2]
[421433271,1777643676000,177.0,8.43e-05,3]
[421433273,1777643732000,500.0,0.0003013,120]
[421433272,1777643732000,518.13685465,0.0003013,120]
[421433281,1777644249000,919.38,0.00030137,120]
[421433282,1777644259000,166.32,6.961e-05,2]
[421433312,1777644631000,-797.26,8.69e-05,2]
[421433311,1777644631000,-999.35,8.657e-05,2]
[421433310,1777644631000,-1333.85,8.645e-05,2]
[421433313,1777644631000,-267.2478188,8.74e-05,2]
[421433314,1777644631000,-9059.22,9.035e-05,2]
[421433308,1777644631000,-313.13150344,8.601e-05,2]
[421433309,1777644631000,-4692.87742864,8.601e-05,2]
[421433315,1777644631000,-4426.87,9.075e-05,2]
[421433307,1777644631000,-204.65306792,8.601e-05,2]
[421433304,1777644631000,-236.11991011,8.43e-05,2]
[421433305,1777644631000,-242.56831313,8.43e-05,2]
[421433301,1777644631000,-500.0,8.43e-05,2]
[421433303,1777644631000,-303.90508817,8.43e-05,2]
[421433302,1777644631000,-196.09491183,8.43e-05,2]
[421433306,1777644631000,-1200.0,8.6e-05,2]
[421433316,1777644631000,-150.0,9.104e-05,2]
[421433319,1777644631000,-193.0,9.273e-05,2]
[421433317,1777644631000,-401.54,9.127e-05,2]
[421433325,1777644631000,-150.0,9.493e-05,2]
[421433333,1777644631000,-150.0,9.493e-05,2]
[421433332,1777644631000,-214.87497428,9.493e-05,2]
[421433329,1777644631000,-150.0,9.493e-05,2]
[421433331,1777644631000,-150.0,9.493e-05,2]
[421433328,1777644631000,-150.0,9.493e-05,2]
[421433330,1777644631000,-150.0,9.493e-05,2]
[421433334,1777644631000,-150.0,9.493e-05,2]
[421433327,1777644631000,-150.0,9.493e-05,2]
[421433318,1777644631000,-167.04,9.194e-05,2]
[421433323,1777644631000,-500.0,9.273e-05,2]
[421433322,1777644631000,-1894.3840866,9.273e-05,2]
[421433321,1777644631000,-300.0,9.273e-05,2]
[421433335,1777644631000,-150.78420294,9.493e-05,2]
[421433326,1777644631000,-150.0,9.493e-05,2]
[421433324,1777644631000,-1680.0,9.46e-05,2]
[421433343,1777644632000,-500.0,9.599e-05,2]
[421433339,1777644632000,-151.669,9.598e-05,2]
[421433346,1777644632000,-500.0,9.599e-05,2]
[421433337,1777644632000,-166.67,9.555e-05,2]
[421433348,1777644632000,-500.0,9.599e-05,2]
[421433345,1777644632000,-500.0,9.599e-05,2]
[421433340,1777644632000,-150.0,9.599e-05,2]
[421433338,1777644632000,-1504.041,9.598e-05,2]
[421433336,1777644632000,-1092.2522,9.5e-05,2]
[421433344,1777644632000,-500.0,9.599e-05,2]
[421433342,1777644632000,-640.26150697,9.599e-05,2]
[421433347,1777644632000,-500.0,9.599e-05,2]
[421433358,1777644632000,-500.0,9.599e-05,2]
[421433351,1777644632000,-500.0,9.599e-05,2]
[421433359,1777644632000,-31501.6014135,9.6e-05,2]
[421433354,1777644632000,-500.0,9.599e-05,2]
[421433350,1777644632000,-500.0,9.599e-05,2]
[421433353,1777644632000,-500.0,9.599e-05,2]
[421433349,1777644632000,-500.0,9.599e-05,2]
[421433355,1777644632000,-500.0,9.599e-05,2]
[421433352,1777644632000,-500.0,9.599e-05,2]
[421433356,1777644632000,-500.0,9.599e-05,2]
[421433357,1777644632000,-500.0,9.599e-05,2]
[421433360,1777644632000,-3887.0,9.6e-05,2]
[421433341,1777644632000,-500.0,9.599e-05,2]
[421433417,1777644638000,-356.93699852,9.6e-05,2]
[421433419,1777644638000,-321.26507296,9.6e-05,2]
[421433418,1777644638000,-4137.3396066,9.6e-05,2]
[421433621,1777644640000,-9.576e-05,9.6e-05,2]
[421433617,1777644640000,-765.72970211,9.6e-05,2]
[421433944,1777644642000,-3594.91339159,9.6e-05,2]
[421434023,1777644643000,-13911.27530649,9.6e-05,2]
[421433996,1777644643000,-6726.99596867,9.6e-05,2]
[421433983,1777644643000,-251.47449568,9.6e-05,2]
[421433980,1777644643000,-56731.96640743,9.6e-05,2]
[421433972,1777644643000,-262.0,9.6e-05,2]
[421434099,1777644645000,-47.90896717,9.6e-05,2]
[421434100,1777644646000,-1409.83350766,9.6e-05,2]
[421434101,1777644646000,-374.82910335,9.6e-05,2]
[421434114,1777644680000,461.23,5.441e-05,2]
[421434113,1777644680000,461.23,5.205e-05,2]
[421434112,1777644680000,461.23,4.968e-05,2]
[421434111,1777644680000,461.23,4.732e-05,2]
[421434110,1777644680000,461.23,4.495e-05,2]
[421434116,1777644681000,461.23,5.915e-05,2]
[421434115,1777644681000,461.23,5.678e-05,2]
[421434118,1777644681000,461.23,6.388e-05,2]
[421434117,1777644681000,461.23,6.151e-05,2]
[421434122,1777644682000,461.23,7.334e-05,2]
[421434121,1777644682000,461.23,7.097e-05,2]
[421434120,1777644682000,461.23,6.861e-05,2]
[421434119,1777644682000,461.23,6.624e-05,2]
[421434127,1777644683000,461.23,8.517e-05,2]
[421434126,1777644683000,461.23,8.28e-05,2]
[421434125,1777644683000,461.23,8.044e-05,2]
[421434124,1777644683000,461.23,7.807e-05,2]
[421434123,1777644683000,461.23,7.571e-05,2]
[421434128,1777644714000,279.9401,8.33e-05,2]
[421434130,1777644939000,1089.68226848,0.0003013,120]
[421434129,1777644939000,804.26373563,0.0003013,120]
[421434132,1777645167000,1000.0,8.549e-05,2]
[421434133,1777645186000,2796.74,0.00030137,120]
[421434136,1777645310000,1000.0,0.00030137,120]
[421434137,1777645373000,2000.0,8.364e-05,2]
[421434138,1777645379000,537.2,0.00030137,120]
[421434139,1777645509000,500.0,8.303e-05,2]
[421434140,1777645638000,-263.0,8.753e-05,2]
[421434142,1777645638000,-461.23,8.753e-05,2]
[421434143,1777645638000,-220.06211169,8.769e-05,2]
[421434144,1777645638000,-158.90402635,8.777e-05,2]
[421434141,1777645638000,-250.0,8.753e-05,2]
[421434146,1777645702000,217.02,8.371e-05,2]
[421434147,1777645711000,237.0,0.00010333,5]
[421434148,1777645712000,5071.22,8.344e-05,2]
[421434149,1777645751000,1247.0,8.365e-05,2]
[421434164,1777645832000,-300.0,8.999e-05,2]
[421434162,1777645832000,-166.66,8.934e-05,2]
[421434163,1777645832000,-461.23,8.99e-05,2]
[421434166,1777645832000,-300.0,8.999e-05,2]
[421434161,1777645832000,-217.02,8.836e-05,2]
[421434158,1777645832000,-723.96597365,8.777e-05,2]
[421434159,1777645832000,-160.94,8.781e-05,2]
[421434168,1777645832000,-1074.08324264,9e-05,2]
[421434160,1777645832000,-176.01524314,8.781e-05,2]
[421434165,1777645832000,-1200.0,8.999e-05,2]
[421434167,1777645832000,-4712.77519676,9e-05,2]
[421434171,1777645832000,-150.0,9.04e-05,2]
[421434170,1777645832000,-4044.78225713,9e-05,2]
[421434173,1777645832000,-578.20924308,9.141e-05,2]
[421434172,1777645832000,-147943.3025,9.041e-05,2]
[421434176,1777645832000,-151.0,9.141e-05,2]
[421434174,1777645832000,-9552.16786547,9.141e-05,2]
[421434178,1777645832000,-209.40437684,9.141e-05,2]
[421434181,1777645832000,-1000.0,9.195e-05,2]
[421434179,1777645832000,-174.61919141,9.141e-05,2]
[421434180,1777645832000,-203.86501494,9.141e-05,2]
[421434182,1777645832000,-3942.96401662,9.196e-05,2]
[421434169,1777645832000,-955.21774287,9e-05,2]
[421434195,1777645838000,-151.0,9.196e-05,2]
[421434193,1777645838000,-3476.87616775,9.196e-05,2]
[421434194,1777645838000,-2485.75789213,9.196e-05,2]
[421434198,1777645838000,-393.80855389,9.205e-05,2]
[421434199,1777645838000,-513.95937192,9.205e-05,2]
[421434196,1777645838000,-4986.40153571,9.205e-05,2]
[421434197,1777645838000,-1591.37025035,9.205e-05,2]
[421434201,1777645838000,-1982.2936034,9.205e-05,2]
[421434200,1777645838000,-1068.82306261,9.205e-05,2]
[421434233,1777645840000,-556.0,9.342e-05,2]
[421434237,1777645840000,-556.0,9.342e-05,2]
[421434236,1777645840000,-556.0,9.342e-05,2]
[421434238,1777645840000,-556.0,9.342e-05,2]
[421434241,1777645840000,-556.0,9.342e-05,2]
[421434239,1777645840000,-556.0,9.342e-05,2]
[421434240,1777645840000,-556.0,9.342e-05,2]
[421434246,1777645840000,-556.0,9.342e-05,2]
[421434247,1777645840000,-556.0,9.342e-05,2]
[421434244,1777645840000,-556.0,9.342e-05,2]
[421434256,1777645840000,-150.0,9.342e-05,2]
[421434242,1777645840000,-556.0,9.342e-05,2]
[421434245,1777645840000,-556.0,9.342e-05,2]
[421434249,1777645840000,-556.0,9.342e-05,2]
[421434259,1777645840000,-168.4840907,9.342e-05,2]
[421434261,1777645840000,-150.0,9.342e-05,2]
[421434260,1777645840000,-150.0,9.342e-05,2]
[421434248,1777645840000,-556.0,9.342e-05,2]
[421434257,1777645840000,-590.95400913,9.342e-05,2]
[421434254,1777645840000,-500.0,9.342e-05,2]
[421434230,1777645840000,-556.0,9.342e-05,2]
[421434243,1777645840000,-556.0,9.342e-05,2]
[421434234,1777645840000,-556.0,9.342e-05,2]
[421434223,1777645840000,-151.13418816,9.336e-05,2]
[421434229,1777645840000,-556.0,9.342e-05,2]
[421434211,1777645840000,-166.66,9.229e-05,2]
[421434210,1777645840000,-861948.12312212,9.205e-05,2]
[421434213,1777645840000,-151.0,9.251e-05,2]
[421434222,1777645840000,-743.50770149,9.336e-05,2]
[421434221,1777645840000,-200.0,9.336e-05,2]
[421434216,1777645840000,-10652.17309792,9.306e-05,2]
[421434212,1777645840000,-10272.10520533,9.251e-05,2]
[421434214,1777645840000,-160.94,9.269e-05,2]
[421434215,1777645840000,-217.02,9.301e-05,2]
[421434232,1777645840000,-556.0,9.342e-05,2]
[421434219,1777645840000,-1428.38747117,9.336e-05,2]
[421434218,1777645840000,-769.47,9.315e-05,2]
[421434220,1777645840000,-721.12765535,9.336e-05,2]
[421434225,1777645840000,-209.40437684,9.336e-05,2]
[421434226,1777645840000,-500.0,9.342e-05,2]
[421434224,1777645840000,-279.9045709,9.336e-05,2]
[421434235,1777645840000,-556.0,9.342e-05,2]
[421434228,1777645840000,-556.0,9.342e-05,2]
[421434227,1777645840000,-556.0,9.342e-05,2]
[421434231,1777645840000,-556.0,9.342e-05,2]
[421434217,1777645840000,-151.0,9.306e-05,2]
[421434252,1777645840000,-150.0,9.342e-05,2]
[421434288,1777645840000,-500.0,9.496e-05,2]
[421434250,1777645840000,-573.39523532,9.342e-05,2]
[421434287,1777645840000,-500.0,9.496e-05,2]
[421434282,1777645840000,-500.0,9.496e-05,2]
[421434285,1777645840000,-500.0,9.496e-05,2]
[421434283,1777645840000,-500.0,9.496e-05,2]
[421434289,1777645840000,-500.0,9.496e-05,2]
[421434290,1777645840000,-500.0,9.496e-05,2]
[421434301,1777645840000,-500.0,9.496e-05,2]
[421434299,1777645840000,-500.0,9.496e-05,2]
[421434293,1777645840000,-500.0,9.496e-05,2]
[421434295,1777645840000,-500.0,9.496e-05,2]
[421434306,1777645840000,-500.0,9.496e-05,2]
[421434307,1777645840000,-500.0,9.496e-05,2]
[421434308,1777645840000,-241.62233487,9.496e-05,2]
[421434303,1777645840000,-500.0,9.496e-05,2]
[421434310,1777645840000,-500.0,9.496e-05,2]
[421434311,1777645840000,-500.0,9.496e-05,2]
[421434312,1777645840000,-500.0,9.496e-05,2]
[421434309,1777645840000,-500.0,9.496e-05,2]
[421434314,1777645840000,-500.0,9.496e-05,2]
[421434255,1777645840000,-500.0,9.342e-05,2]
[421434313,1777645840000,-500.0,9.496e-05,2]
[421434280,1777645840000,-500.0,9.496e-05,2]
[421434281,1777645840000,-500.0,9.496e-05,2]
[421434297,1777645840000,-500.0,9.496e-05,2]
[421434279,1777645840000,-500.0,9.496e-05,2]
[421434251,1777645840000,-150.0,9.342e-05,2]
[421434258,1777645840000,-171.58220921,9.342e-05,2]
[421434284,1777645840000,-500.0,9.496e-05,2]
[421434253,1777645840000,-150.0,9.342e-05,2]
[421434262,1777645840000,-273.72753334,9.342e-05,2]
[421434263,1777645840000,-11046.30350255,9.361e-05,2]
[421434274,1777645840000,-2927.49444221,9.489e-05,2]
[421434267,1777645840000,-2000.0,9.41e-05,2]